fUST/lending_fUST_20251010
["ID","MTS","AMOUNT","RATE_DAILY","PERIOD"]
[390528306,1760073059977,-500.0,0.0001726,2]
[390528307,1760073059987,-500.0,0.0001726,2]
[390528308,1760073059997,-502.83694199,0.0001726,2]
[390528309,1760073060007,-503.99328414,0.0001726,2]
[390528310,1760073060016,-500.0,0.0001726,2]
[390528311,1760073060026,-500.0,0.0001726,2]
[390528312,1760073060036,-500.0,0.0001726,2]
[390528313,1760073060046,-500.0,0.0001726,2]
[390528314,1760073060056,-500.0,0.0001726,2]
[390528315,1760073060065,-512.41,0.0001726,2]
[390528316,1760073060075,-512.41,0.0001726,2]
[390528317,1760073060085,-504.39754967,0.0001726,2]
[390528318,1760073060094,-500.0,0.0001726,2]
[390528319,1760073060103,-500.0,0.0001726,2]
[390528320,1760073060113,-500.0,0.0001726,2]
[390528321,1760073060123,-500.0,0.0001726,2]
[390528322,1760073060132,-500.0,0.0001726,2]
[390528323,1760073060141,-500.0,0.0001726,2]
[390528324,1760073060151,-500.0,0.0001726,2]
[390528325,1760073060160,-500.0,0.0001726,2]
[390528326,1760073060170,-500.0,0.0001726,2]
[390528327,1760073060180,-613.47,0.0001726,2]
[390528328,1760073060190,-500.0,0.0001726,2]
[390528329,1760073060200,-504.14856226,0.0001726,2]
[390528330,1760073060210,-375.81580885,0.0001726,2]
[390528331,1760073060219,-500.0,0.0001726,2]
[390528332,1760073060231,-500.0,0.0001726,2]
[390528333,1760073060241,-880.64,0.0001726,2]
[390528334,1760073060251,-843.94,0.0001726,2]
[390528335,1760073060260,-500.0,0.0001726,2]
[390528336,1760073060270,-500.61,0.0001726,2]
[390528337,1760073060279,-500.0,0.0001726,2]
[390528338,1760073060288,-200.0,0.0001726,2]
[390528339,1760073060298,-500.0,0.0001726,2]
[390528340,1760073060307,-500.0,0.0001726,2]
[390528341,1760073060316,-500.0,0.0001726,2]
[390528342,1760073060326,-500.0,0.0001726,2]
[390528343,1760073060335,-500.0,0.0001726,2]
[390528344,1760073060344,-500.0,0.0001726,2]
[390528345,1760073060353,-240.5526988,0.0001726,2]
[390528346,1760073060363,-500.0,0.0001726,2]
[390528347,1760073060372,-500.0,0.0001726,2]
[390528348,1760073060381,-1212.98,0.0001726,2]
[390528349,1760073060390,-500.0,0.0001726,2]
[390528350,1760073060399,-500.0,0.0001726,2]
[390528351,1760073060409,-500.0,0.0001726,2]
[390528352,1760073060418,-500.0,0.0001726,2]
[390528353,1760073060427,-500.0,0.0001726,2]
[390528354,1760073060436,-500.0,0.0001726,2]
[390528355,1760073060445,-500.0,0.0001726,2]
[390528356,1760073060454,-500.0,0.0001726,2]
[390528357,1760073060463,-500.0,0.0001726,2]
[390528358,1760073060472,-500.0,0.0001726,2]
[390528359,1760073060482,-500.0,0.0001726,2]
[390528360,1760073060492,-500.0,0.0001726,2]
[390528361,1760073060501,-500.0,0.0001726,2]
[390528362,1760073060510,-500.0,0.0001726,2]
[390528363,1760073060520,-500.0,0.0001726,2]
[390528364,1760073060529,-500.0,0.0001726,2]
[390528365,1760073060538,-1092.88,0.0001726,2]
[390528366,1760073060548,-500.0,0.0001726,2]
[390528367,1760073060557,-500.0,0.0001726,2]
[390528368,1760073060567,-500.0,0.0001726,2]
[390528369,1760073060576,-500.0,0.0001726,2]
[390528370,1760073060585,-948.26,0.0001726,2]
[390528371,1760073060597,-500.0,0.0001726,2]
[390528372,1760073060608,-500.0,0.0001726,2]
[390528373,1760073060617,-583.71909316,0.0001726,2]
[390528374,1760073060626,-500.0,0.0001726,2]
[390528375,1760073060749,-500.0,0.0001726,2]
[390528376,1760073060759,-500.0,0.0001726,2]
[390528377,1760073060769,-500.0,0.0001726,2]
[390528378,1760073060778,-500.0,0.0001726,2]
[390528379,1760073060788,-500.0,0.0001726,2]
[390528380,1760073060798,-500.0,0.0001726,2]
[390528381,1760073060807,-500.0,0.0001726,2]
[390528382,1760073060816,-500.0,0.0001726,2]
[390528383,1760073060825,-500.0,0.0001726,2]
[390528384,1760073060835,-500.0,0.0001726,2]
[390528385,1760073060844,-500.0,0.0001726,2]
[390528386,1760073060853,-500.0,0.0001726,2]
[390528387,1760073060862,-500.0,0.0001726,2]
[390528388,1760073060872,-500.0,0.0001726,2]
[390528389,1760073060882,-500.0,0.0001726,2]
[390528390,1760073060891,-500.0,0.0001726,2]
[390528391,1760073060900,-500.0,0.0001726,2]
[390528392,1760073060910,-500.0,0.0001726,2]
[390528393,1760073060919,-500.0,0.0001726,2]
[390528394,1760073060928,-335.28662782,0.0001726,2]
[390528395,1760073060938,-500.0,0.0001726,2]
[390528396,1760073060947,-500.0,0.0001726,2]
[390528397,1760073060957,-500.0,0.0001726,2]
[390528398,1760073060967,-500.0,0.0001726,2]
[390528399,1760073060976,-500.0,0.0001726,2]
[390528400,1760073060986,-500.0,0.0001726,2]
[390528401,1760073060996,-500.0,0.0001726,2]
[390528402,1760073061005,-500.0,0.0001726,2]
[390528403,1760073061015,-500.0,0.0001726,2]
[390528404,1760073061025,-500.0,0.0001726,2]
[390528405,1760073061034,-500.0,0.0001726,2]
[390528406,1760073061044,-500.0,0.0001726,2]
[390528407,1760073061054,-500.0,0.0001726,2]
[390528408,1760073061064,-502.11849293,0.0001726,2]
[390528409,1760073061073,-1300.53,0.0001726,2]
[390528410,1760073061082,-550.15,0.0001726,2]
[390528411,1760073061092,-1034.78,0.0001726,2]
[390528412,1760073061101,-500.0,0.0001726,2]
[390528413,1760073061111,-502.77583653,0.0001726,2]
[390528414,1760073061120,-500.0,0.0001726,2]
[390528415,1760073061129,-500.0,0.0001726,2]
[390528416,1760073061138,-487.99195088,0.0001726,2]
[390528417,1760073061147,-500.0,0.0001726,2]
[390528418,1760073061156,-7851.8,0.0001726,2]
[390528419,1760073061166,-500.0,0.0001726,2]
[390528420,1760073061176,-500.0,0.0001726,2]
[390528421,1760073061185,-500.0,0.0001726,2]
[390528422,1760073061194,-500.0,0.0001726,2]
[390528423,1760073061204,-1314.09,0.0001726,2]
[390528424,1760073061213,-500.0,0.0001726,2]
[390528425,1760073061224,-500.0,0.0001726,2]
[390528426,1760073061234,-500.0,0.0001726,2]
[390528427,1760073061244,-500.0,0.0001726,2]
[390528428,1760073061254,-500.0,0.0001726,2]
[390528429,1760073061264,-500.0,0.0001726,2]
[390528430,1760073061273,-500.0,0.0001726,2]
[390528431,1760073061282,-529.63,0.0001726,2]
[390528432,1760073061291,-500.0,0.0001726,2]
[390528433,1760073061301,-500.0,0.0001726,2]
[390528434,1760073061314,-500.0,0.0001726,2]
[390528435,1760073061323,-502.68734328,0.0001726,2]
[390528437,1760073061332,-983.84,0.0001726,2]
[390528438,1760073061341,-501.75503013,0.0001726,2]
[390528439,1760073061351,-500.0,0.0001726,2]
[390528440,1760073061360,-500.0,0.0001726,2]
[390528441,1760073061369,-500.0,0.0001726,2]
[390528442,1760073061378,-500.0,0.0001726,2]
[390528443,1760073061387,-500.0,0.0001726,2]
[390528444,1760073061396,-500.0,0.0001726,2]
[390528445,1760073061405,-413.34126525,0.0001726,2]
[390528446,1760073061815,-86.65873475,0.0001726,2]
[390528447,1760073061825,-500.0,0.0001726,2]
[390528448,1760073061835,-3527.12,0.0001726,2]
[390528450,1760073061845,-500.0,0.0001726,2]
[390528451,1760073061854,-500.0,0.0001726,2]
[390528452,1760073061863,-500.0,0.0001726,2]
[390528453,1760073061873,-500.0,0.0001726,2]
[390528454,1760073061882,-500.0,0.0001726,2]
[390528455,1760073061892,-500.0,0.0001726,2]
[390528456,1760073061901,-500.0,0.0001726,2]
[390528457,1760073061910,-500.0,0.0001726,2]
[390528458,1760073061918,-4207.785729,0.0001726,2]
[390528459,1760073062269,-500.0,0.00016986,2]
[390528460,1760073062278,-328.39999963,0.0001726,2]
[390528466,1760073225811,194.658681,0.00018975,20]
[390528469,1760073529764,154.882853,0.00018596,20]
[390528470,1760073530172,154.882853,0.00018267,20]
[390528471,1760073530576,154.882853,0.00017938,20]
[390528472,1760073695513,9135.2980563,0.00024,30]
[390528474,1760073753794,216.249275,0.00015434,2]
[390528475,1760073755467,210.2901217,0.00015434,2]
[390528477,1760073770996,157.757348,0.00028,120]
[390528479,1760073815559,168.70419,0.00018975,20]
[390528480,1760073822321,154.882853,0.00018596,20]
[390528481,1760073822734,154.882853,0.00018267,20]
[390528482,1760073823157,154.882853,0.00017938,20]
[390528484,1760073871014,659.542243,0.00013699,2]
[390528544,1760074237836,-217.4180861,0.00015687,2]
[390528545,1760074237846,-393.38192319,0.00015687,2]
[390528546,1760074237855,-452.38921167,0.00016287,2]
[390528547,1760074237864,-893.59857924,0.00016338,2]
[390528548,1760074237873,-154.882853,0.00016358,6]
[390528549,1760074237882,-338.0,0.00016427,2]
[390528550,1760074237892,-300.0,0.00016427,2]
[390528551,1760074237901,-426.46,0.00016428,3]
[390528552,1760074237911,-213.23,0.00016428,3]
[390528553,1760074237920,-639.71,0.00016428,3]
[390528554,1760074237930,-18603.8837,0.00016428,2]
[390528555,1760074237939,-162.380719,0.00016428,2]
[390528556,1760074237949,-261.63316405,0.00016428,2]
[390528557,1760074237960,-203.99675018,0.00016437,2]
[390528558,1760074237970,-361.89687861,0.00016437,2]
[390528559,1760074237979,-639.18383193,0.00016437,2]
[390528560,1760074237988,-500.0,0.00016438,2]
[390528561,1760074237997,-500.0,0.00016438,2]
[390528562,1760074238006,-502.22264333,0.00016438,2]
[390528563,1760074238015,-500.0,0.00016438,2]
[390528564,1760074238025,-500.0,0.00016438,2]
[390528565,1760074238034,-500.0,0.00016438,2]
[390528566,1760074238043,-500.0,0.00016438,2]
[390528567,1760074238053,-500.0,0.00016438,2]
[390528568,1760074238063,-500.0,0.00016438,2]
[390528569,1760074238072,-500.0,0.00016438,2]
[390528570,1760074238082,-500.0,0.00016438,2]
[390528571,1760074238091,-500.0,0.00016438,2]
[390528572,1760074238101,-500.0,0.00016438,2]
[390528573,1760074238110,-603.35533157,0.00016438,2]
[390528574,1760074238119,-500.0,0.00016438,2]
[390528575,1760074238129,-502.89837671,0.00016438,2]
[390528576,1760074238138,-358.1776129,0.00016438,2]
[390528577,1760074238148,-500.0,0.00016438,2]
[390528578,1760074238157,-500.0,0.00016438,2]
[390528579,1760074238167,-503.77541433,0.00016438,2]
[390528580,1760074238176,-503.27537938,0.00016438,2]
[390528581,1760074238186,-482.72561223,0.00016438,2]
[390528582,1760074238195,-500.0,0.00016438,2]
[390528583,1760074238205,-500.0,0.00016438,2]
[390528584,1760074238214,-100.58117648,0.00016438,2]
[390528585,1760074238231,-400.70769647,0.00016438,2]
[390528586,1760074238241,-501.79205893,0.00016438,2]
[390528587,1760074238250,-500.0,0.00016438,2]
[390528588,1760074238259,-500.0,0.00016438,2]
[390528589,1760074238269,-500.0,0.00016438,2]
[390528590,1760074238279,-500.0,0.00016438,2]
[390528591,1760074238288,-500.0,0.00016438,2]
[390528592,1760074238297,-500.0,0.00016438,2]
[390528593,1760074238307,-500.0,0.00016438,2]
[390528594,1760074238316,-500.0,0.00016438,2]
[390528595,1760074238326,-500.0,0.00016438,2]
[390528596,1760074238335,-502.51789228,0.00016438,2]
[390528597,1760074238345,-500.0,0.00016438,2]
[390528598,1760074238354,-500.0,0.00016438,2]
[390528599,1760074238364,-500.0,0.00016438,2]
[390528600,1760074238374,-500.0,0.00016438,2]
[390528601,1760074238383,-504.17224327,0.00016438,2]
[390528602,1760074238392,-500.76029854,0.00016438,2]
[390528603,1760074238402,-1003.14755388,0.00016438,2]
[390528604,1760074238411,-500.0,0.00016438,2]
[390528605,1760074238420,-500.0,0.00016438,2]
[390528606,1760074238430,-500.0,0.00016438,2]
[390528607,1760074238440,-500.0,0.00016438,2]
[390528608,1760074238449,-500.80769288,0.00016438,2]
[390528609,1760074238458,-500.52230088,0.00016438,2]
[390528610,1760074238467,-500.0,0.00016438,2]
[390528611,1760074238476,-500.99175476,0.00016438,2]
[390528612,1760074238486,-500.0,0.00016438,2]
[390528613,1760074238496,-500.0,0.00016438,2]
[390528614,1760074238505,-500.90624379,0.00016438,2]
[390528615,1760074238514,-500.0,0.00016438,2]
[390528616,1760074238528,-501.09545884,0.00016438,2]
[390528617,1760074238537,-500.0,0.00016438,2]
[390528618,1760074238547,-500.0,0.00016438,2]
[390528619,1760074238557,-500.0,0.00016438,2]
[390528620,1760074238567,-500.0,0.00016438,2]
[390528621,1760074238576,-500.64376211,0.00016438,2]
[390528622,1760074238586,-500.0,0.00016438,2]
[390528623,1760074238596,-500.0,0.00016438,2]
[390528624,1760074238606,-501.69374582,0.00016438,2]
[390528625,1760074238616,-500.0,0.00016438,2]
[390528626,1760074238625,-500.0,0.00016438,2]
[390528627,1760074238635,-525.99772976,0.00016438,2]
[390528628,1760074238644,-500.0,0.00016438,2]
[390528629,1760074238653,-500.0,0.00016438,2]
[390528630,1760074238663,-500.0,0.00016438,2]
[390528631,1760074238672,-500.0,0.00016438,2]
[390528632,1760074238681,-500.0,0.00016438,2]
[390528633,1760074238691,-307.92316517,0.00016438,2]
[390528634,1760074238701,-500.0,0.00016438,2]
[390528635,1760074238710,-571.57252726,0.00016438,2]
[390528636,1760074238719,-500.0,0.00016438,2]
[390528637,1760074238729,-421.83406148,0.00016438,2]
[390528638,1760074238739,-500.0,0.00016438,2]
[390528639,1760074238748,-500.0,0.00016438,2]
[390528640,1760074238758,-537.16480328,0.00016438,2]
[390528641,1760074238768,-500.0,0.00016438,2]
[390528642,1760074238778,-500.0,0.00016438,2]
[390528643,1760074238787,-500.0,0.00016438,2]
[390528644,1760074238796,-502.06924811,0.00016438,2]
[390528645,1760074238807,-500.0,0.00016438,2]
[390528646,1760074238816,-500.0,0.00016438,2]
[390528647,1760074238829,-500.0,0.00016438,2]
[390528648,1760074238842,-500.0,0.00016438,2]
[390528649,1760074238857,-500.0,0.00016438,2]
[390528650,1760074238870,-501.60536764,0.00016438,2]
[390528651,1760074238883,-500.0,0.00016438,2]
[390528652,1760074238894,-500.0,0.00016438,2]
[390528653,1760074238907,-155.40435035,0.00016438,2]
[390528654,1760074238919,-500.0,0.00016438,2]
[390528655,1760074238932,-500.0,0.00016438,2]
[390528656,1760074238944,-501.23739647,0.00016438,2]
[390528657,1760074238960,-500.0,0.00016438,2]
[390528658,1760074238972,-500.0,0.00016438,2]
[390528659,1760074238984,-501.46008985,0.00016438,2]
[390528660,1760074238999,-500.0,0.00016438,2]
[390528661,1760074239011,-501.25766401,0.00016438,2]
[390528662,1760074239023,-500.0,0.00016438,2]
[390528663,1760074239038,-500.43630551,0.00016438,2]
[390528664,1760074239051,-500.0,0.00016438,2]
[390528665,1760074239065,-500.0,0.00016438,2]
[390528666,1760074239077,-500.0,0.00016438,2]
[390528667,1760074239090,-501.3236961,0.00016438,2]
[390528668,1760074239104,-500.0,0.00016438,2]
[390528669,1760074239118,-340.0008303,0.00016438,2]
[390528670,1760074239130,-501.78675145,0.00016438,2]
[390528671,1760074239141,-1500.91,0.00016438,2]
[390528672,1760074239152,-369.60936673,0.00016438,2]
[390528673,1760074239164,-500.89359788,0.00016438,2]
[390528674,1760074239175,-500.0,0.00016438,2]
[390528675,1760074239188,-500.0,0.00016438,2]
[390528676,1760074239200,-501.65952057,0.00016438,2]
[390528677,1760074239213,-500.0,0.00016438,2]
[390528678,1760074239225,-175.91563129,0.00016438,2]
[390528679,1760074239238,-500.56236055,0.00016438,2]
[390528680,1760074239251,-500.0,0.00016438,2]
[390528681,1760074239263,-501.41943121,0.00016438,2]
[390528682,1760074239276,-500.0,0.00016438,2]
[390528683,1760074239287,-500.0,0.00016438,2]
[390528684,1760074239297,-500.0,0.00016438,2]
[390528685,1760074239308,-500.0,0.00016438,2]
[390528686,1760074239319,-500.0,0.00016438,2]
[390528687,1760074239331,-469.30839582,0.00016438,2]
[390528688,1760074239345,-500.0,0.00016438,2]
[390528689,1760074239357,-500.0,0.00016438,2]
[390528690,1760074239370,-501.57227465,0.00016438,2]
[390528691,1760074239379,-500.0,0.00016438,2]
[390528692,1760074239390,-527.23,0.00016438,2]
[390528693,1760074239403,-500.0,0.00016438,2]
[390528694,1760074239417,-269.3180671,0.00016438,2]
[390528695,1760074239428,-298.37237178,0.00016438,2]
[390528697,1760074239439,-500.0,0.00016438,2]
[390528698,1760074239449,-501.28531194,0.00016438,2]
[390528699,1760074239459,-500.0,0.00016438,2]
[390528700,1760074239470,-501.82525681,0.00016438,2]
[390528701,1760074239480,-500.0,0.00016438,2]
[390528702,1760074239492,-500.0,0.00016438,2]
[390528703,1760074239503,-500.0,0.00016438,2]
[390528705,1760074239521,-500.0,0.00016438,2]
[390528707,1760074239532,-500.0,0.00016438,2]
[390528710,1760074239544,-500.63790663,0.00016438,2]
[390528712,1760074239556,-500.0,0.00016438,2]
[390528714,1760074239568,-500.0,0.00016438,2]
[390528716,1760074239579,-500.82531903,0.00016438,2]
[390528717,1760074239591,-500.0,0.00016438,2]
[390528719,1760074239602,-500.0,0.00016438,2]
[390528721,1760074239614,-500.0,0.00016438,2]
[390528722,1760074239625,-501.3140315,0.00016438,2]
[390528723,1760074239636,-500.0,0.00016438,2]
[390528724,1760074239647,-500.0,0.00016438,2]
[390528725,1760074239659,-501.79744955,0.00016438,2]
[390528726,1760074239670,-500.0,0.00016438,2]
[390528727,1760074239683,-500.0,0.00016438,2]
[390528728,1760074239695,-500.0,0.00016438,2]
[390528730,1760074239706,-500.0,0.00016438,2]
[390528731,1760074239717,-501.08569497,0.00016438,2]
[390528732,1760074239729,-500.0,0.00016438,2]
[390528733,1760074239740,-500.0,0.00016438,2]
[390528734,1760074239751,-500.0,0.00016438,2]
[390528735,1760074239763,-500.0,0.00016438,2]
[390528736,1760074239774,-500.0,0.00016438,2]
[390528737,1760074239785,-500.0,0.00016438,2]
[390528738,1760074239797,-500.0,0.00016438,2]
[390528740,1760074239810,-500.0,0.00016438,2]
[390528742,1760074239821,-359.37702675,0.00016438,2]
[390528743,1760074239832,-500.0,0.00016438,2]
[390528744,1760074239843,-500.0,0.00016438,2]
[390528745,1760074239854,-500.0,0.00016438,2]
[390528746,1760074239865,-500.0,0.00016438,2]
[390528747,1760074239875,-500.0,0.00016438,2]
[390528748,1760074239886,-500.0,0.00016438,2]
[390528749,1760074239897,-500.0,0.00016438,2]
[390528750,1760074239907,-500.0,0.00016438,2]
[390528751,1760074239919,-500.0,0.00016438,2]
[390528752,1760074239930,-502.33088566,0.00016438,2]
[390528753,1760074239941,-500.0,0.00016438,2]
[390528754,1760074239952,-500.0,0.00016438,2]
[390528755,1760074239963,-503.0999779,0.00016438,2]
[390528756,1760074239980,-500.0,0.00016438,2]
[390528757,1760074239991,-500.0,0.00016438,2]
[390528758,1760074240002,-501.12466354,0.00016438,2]
[390528759,1760074240013,-1035.11,0.00016438,2]
[390528761,1760074240024,-500.0,0.00016438,2]
[390528762,1760074240035,-766.55,0.00016438,2]
[390528764,1760074240047,-500.0,0.00016438,2]
[390528766,1760074240058,-500.0,0.00016438,2]
[390528767,1760074240068,-500.0,0.00016438,2]
[390528768,1760074240079,-501.20554568,0.00016438,2]
[390528769,1760074240090,-500.0,0.00016438,2]
[390528770,1760074240102,-500.0,0.00016438,2]
[390528771,1760074240112,-500.0,0.00016438,2]
[390528772,1760074240125,-502.38561524,0.00016438,2]
[390528773,1760074240136,-1162.44,0.00016438,2]
[390528774,1760074240148,-501.29005317,0.00016438,2]
[390528775,1760074240160,-500.0,0.00016438,2]
[390528776,1760074240171,-500.0,0.00016438,2]
[390528777,1760074240182,-500.0,0.00016438,2]
[390528778,1760074240195,-500.0,0.00016438,2]
[390528779,1760074240206,-500.0,0.00016438,2]
[390528780,1760074240217,-500.0,0.00016438,2]
[390528781,1760074240227,-1000.0,0.00016438,2]
[390528782,1760074240238,-922.12,0.00016438,2]
[390528783,1760074240249,-500.0,0.00016438,2]
[390528784,1760074240259,-500.0,0.00016438,2]
[390528785,1760074240272,-908.75,0.00016438,2]
[390528786,1760074240283,-501.81410703,0.00016438,2]
[390528787,1760074240294,-500.0,0.00016438,2]
[390528788,1760074240305,-500.0,0.00016438,2]
[390528789,1760074240316,-502.50529081,0.00016438,2]
[390528790,1760074240327,-504.27297388,0.00016438,2]
[390528791,1760074240339,-500.0,0.00016438,2]
[390528792,1760074240350,-500.0,0.00016438,2]
[390528793,1760074240360,-500.0,0.00016438,2]
[390528794,1760074240371,-500.0,0.00016438,2]
[390528795,1760074240383,-500.0,0.00016438,2]
[390528796,1760074240394,-500.87353756,0.00016438,2]
[390528797,1760074240405,-172.68877268,0.00016438,2]
[390528798,1760074240416,-501.42285571,0.00016438,2]
[390528799,1760074240427,-254.61685965,0.00016438,2]
[390528800,1760074240438,-614.14,0.00016438,2]
[390528801,1760074240451,-500.0,0.00016438,2]
[390528802,1760074240463,-500.0,0.00016438,2]
[390528803,1760074240474,-500.0,0.00016438,2]
[390528804,1760074240485,-520.51194691,0.00016438,2]
[390528805,1760074240496,-500.0,0.00016438,2]
[390528806,1760074240507,-500.0,0.00016438,2]
[390528807,1760074240518,-500.0,0.00016438,2]
[390528808,1760074240529,-500.0,0.00016438,2]
[390528809,1760074240539,-500.0,0.00016438,2]
[390528810,1760074240550,-500.0,0.00016438,2]
[390528811,1760074240562,-500.0,0.00016438,2]
[390528812,1760074240573,-500.0,0.00016438,2]
[390528813,1760074240584,-500.0,0.00016438,2]
[390528814,1760074240595,-500.0,0.00016438,2]
[390528815,1760074240606,-500.0,0.00016438,2]
[390528816,1760074240618,-501.5660037,0.00016438,2]
[390528817,1760074240628,-501.10732289,0.00016438,2]
[390528818,1760074240638,-500.0,0.00016438,2]
[390528819,1760074240646,-500.0,0.00016438,2]
[390528820,1760074240655,-500.0,0.00016438,2]
[390528821,1760074240664,-500.0,0.00016438,2]
[390528822,1760074240673,-501.37689218,0.00016438,2]
[390528823,1760074240683,-500.0,0.00016438,2]
[390528824,1760074240692,-500.0,0.00016438,2]
[390528825,1760074240918,-500.0,0.00016438,2]
[390528826,1760074240941,-500.0,0.00016438,2]
[390528827,1760074240953,-500.0,0.00016438,2]
[390528828,1760074240962,-500.0,0.00016438,2]
[390528829,1760074240971,-499.57675367,0.00016438,2]
[390528830,1760074240984,-500.0,0.00016438,2]
[390528831,1760074240994,-500.0,0.00016438,2]
[390528832,1760074241003,-500.0,0.00016438,2]
[390528833,1760074241012,-1107.57,0.00016438,2]
[390528834,1760074241022,-166.6810325,0.00016438,2]
[390528835,1760074241031,-501.48108306,0.00016438,2]
[390528836,1760074241040,-1246.34,0.00016438,2]
[390528837,1760074241049,-500.0,0.00016438,2]
[390528838,1760074241060,-500.0,0.00016438,2]
[390528839,1760074241070,-500.0,0.00016438,2]
[390528840,1760074241079,-500.0,0.00016438,2]
[390528841,1760074241088,-500.0,0.00016438,2]
[390528842,1760074241097,-500.0,0.00016438,2]
[390528843,1760074241106,-500.0,0.00016438,2]
[390528844,1760074241116,-445.02304004,0.00016438,2]
[390528845,1760074241125,-500.0,0.00016438,2]
[390528846,1760074241135,-500.0,0.00016438,2]
[390528847,1760074241144,-7524.64,0.00016438,2]
[390528848,1760074241153,-500.0,0.00016438,2]
[390528849,1760074241162,-500.0,0.00016438,2]
[390528850,1760074241171,-500.0,0.00016438,2]
[390528851,1760074241180,-500.0,0.00016438,2]
[390528852,1760074241189,-500.0,0.00016438,2]
[390528853,1760074241198,-500.0,0.00016438,2]
[390528854,1760074241207,-500.0,0.00016438,2]
[390528855,1760074241216,-500.0,0.00016438,2]
[390528856,1760074241225,-640.63289934,0.00016438,2]
[390528857,1760074241234,-500.0,0.00016438,2]
[390528858,1760074241243,-500.0,0.00016438,2]
[390528859,1760074241252,-500.0,0.00016438,2]
[390528860,1760074241261,-942.84,0.00016438,2]
[390528861,1760074241270,-500.0,0.00016438,2]
[390528862,1760074241279,-500.0,0.00016438,2]
[390528863,1760074241287,-500.0,0.00016438,2]
[390528864,1760074241297,-500.0,0.00016438,2]
[390528865,1760074241306,-500.0,0.00016438,2]
[390528866,1760074241315,-500.0,0.00016438,2]
[390528867,1760074241324,-500.0,0.00016438,2]
[390528868,1760074241333,-2332.51,0.00016438,2]
[390528869,1760074241342,-500.0,0.00016438,2]
[390528870,1760074241351,-500.0,0.00016438,2]
[390528871,1760074241359,-500.0,0.00016438,2]
[390528872,1760074241368,-500.0,0.00016438,2]
[390528873,1760074241378,-500.88106567,0.00016438,2]
[390528874,1760074241387,-500.0,0.00016438,2]
[390528875,1760074241396,-500.0,0.00016438,2]
[390528876,1760074241405,-500.0,0.00016438,2]
[390528877,1760074241414,-500.0,0.00016438,2]
[390528878,1760074241423,-500.0,0.00016438,2]
[390528879,1760074241432,-500.0,0.00016438,2]
[390528880,1760074241441,-500.0,0.00016438,2]
[390528881,1760074241451,-500.89667396,0.00016438,2]
[390528882,1760074241459,-481.18839544,0.00016438,2]
[390528883,1760074241468,-500.0,0.00016438,2]
[390528884,1760074241477,-500.0,0.00016438,2]
[390528885,1760074241486,-558.04567782,0.00016438,2]
[390528886,1760074241495,-507.56,0.00016438,2]
[390528887,1760074241504,-500.86748288,0.00016438,2]
[390528888,1760074241513,-500.0,0.00016438,2]
[390528889,1760074241522,-500.0,0.00016438,2]
[390528890,1760074241531,-500.0,0.00016438,2]
[390528891,1760074241540,-500.0,0.00016438,2]
[390528892,1760074241549,-500.0,0.00016438,2]
[390528893,1760074241558,-500.0,0.00016438,2]